fUSD/lending_fUSD_20260106
["ID","MTS","AMOUNT","RATE_DAILY","PERIOD"]
[400612325,1767743446374,-1549.071127,0.00031507,31]
[400612327,1767743446384,-1549.071127,0.00031507,31]
[400612329,1767743446394,-1549.071127,0.00031507,31]
[400612331,1767743446405,-1549.071127,0.00031507,31]
[400612333,1767743446415,-763.352621,0.00031507,31]
[400612335,1767743446424,-1549.071127,0.00031507,31]
[400612336,1767743446434,-763.352621,0.00031507,31]
[400612338,1767743446443,-1549.071127,0.00031507,31]
[400612341,1767743446453,-1549.071127,0.00031507,31]
[400612343,1767743446462,-1549.071127,0.00031507,31]
[400612345,1767743446472,-763.352621,0.00031507,31]
[400612347,1767743446481,-544.53238,0.00031507,31]
[400612349,1767743446491,-544.53238,0.00031507,31]
[400612351,1767743446501,-763.352621,0.00031507,31]
[400612353,1767743446510,-544.53238,0.00031507,31]
[400612355,1767743446520,-763.352621,0.00031507,31]
[400612357,1767743446530,-544.53238,0.00031507,31]
[400612359,1767743446539,-763.352621,0.00031507,31]
[400612361,1767743446548,-544.53238,0.00031507,31]
[400612363,1767743446558,-763.352621,0.00031507,31]
[400612365,1767743446567,-544.53238,0.00031507,31]
[400612367,1767743446576,-763.352621,0.00031507,31]
[400612369,1767743446585,-544.53238,0.00031507,31]
[400612371,1767743446595,-544.53238,0.00031507,31]
[400612372,1767743446604,-193.501507,0.00031507,31]
[400612375,1767743446614,-241.804721,0.00031507,31]
[400612377,1767743446623,-1105.26992,0.00031507,31]
[400612378,1767743446633,-1105.26992,0.00031507,31]
[400612380,1767743446643,-1105.26992,0.00031507,31]
[400612382,1767743446652,-1105.26992,0.00031507,31]
[400612384,1767743446662,-1105.26992,0.00031507,31]
[400612386,1767743446671,-1105.26992,0.00031507,31]
[400612388,1767743446680,-1105.26992,0.00031507,31]
[400612390,1767743446689,-1105.26992,0.00031507,31]
[400612392,1767743446698,-151.0,0.00031507,31]
[400612394,1767743446707,-151.0,0.00031507,31]
[400612396,1767743446716,-193.687225,0.00031507,31]
[400612398,1767743446726,-193.687225,0.00031507,31]
[400612400,1767743446736,-193.687225,0.00031507,31]
[400612402,1767743446745,-193.687225,0.00031507,31]
[400612404,1767743446755,-193.687225,0.00031507,31]
[400612406,1767743446764,-151.0,0.00031507,31]
[400612408,1767743446773,-193.687225,0.00031507,31]
[400612410,1767743446783,-152.416691,0.00031507,31]
[400612412,1767743446793,-193.687225,0.00031507,31]
[400612414,1767743446802,-193.687225,0.00031507,31]
[400612417,1767743446816,-151.0,0.00031507,31]
[400612420,1767743446837,-151.0,0.00031507,31]
[400612423,1767743446855,-496.699588,0.00031507,31]
[400612427,1767743446877,-496.699588,0.00031507,31]
[400612429,1767743446895,-151.0,0.00031507,31]
[400612432,1767743446911,-151.0,0.00031507,31]
[400612435,1767743446929,-496.699588,0.00031507,31]
[400612438,1767743446949,-496.699588,0.00031507,31]
[400612442,1767743446968,-496.699588,0.00031507,31]
[400612444,1767743446986,-496.699588,0.00031507,31]
[400612447,1767743447005,-151.0,0.00031507,31]
[400612450,1767743447022,-151.0,0.00031507,31]
[400612453,1767743447038,-496.699588,0.00031507,31]
[400612456,1767743447057,-496.699588,0.00031507,31]
[400612458,1767743447069,-151.0,0.00031507,31]
[400612461,1767743447086,-151.0,0.00031507,31]
[400612463,1767743447098,-151.0,0.00031507,31]
[400612466,1767743447113,-151.0,0.00031507,31]
[400612468,1767743447129,-995.647522,0.00031507,31]
[400612471,1767743447143,-995.647522,0.00031507,31]
[400612474,1767743447160,-995.647522,0.00031507,31]
[400612476,1767743447175,-995.647522,0.00031507,31]
[400612479,1767743447190,-995.647522,0.00031507,31]
[400612482,1767743447205,-995.647522,0.00031507,31]
[400612485,1767743447227,-995.647522,0.00031507,31]
[400612487,1767743447241,-995.647522,0.00031507,31]
[400612490,1767743447257,-1271.020055,0.00031507,31]
[400612493,1767743447272,-1271.020055,0.00031507,31]
[400612495,1767743447287,-1271.020055,0.00031507,31]
[400612498,1767743447302,-1271.020055,0.00031507,31]
[400612501,1767743447317,-1271.020055,0.00031507,31]
[400612503,1767743447332,-1271.020055,0.00031507,31]
[400612506,1767743447348,-153.640835,0.00031507,31]
[400612508,1767743447362,-1271.020055,0.00031507,31]
[400612511,1767743447377,-1271.020055,0.00031507,31]
[400612514,1767743447392,-159.874682,0.00031507,31]
[400612516,1767743447407,-1016.122291,0.00031507,31]
[400612519,1767743447424,-3207.086174,0.00031507,31]
[400612522,1767743447439,-1016.122291,0.00031507,31]
[400612524,1767743447455,-3207.086174,0.00031507,31]
[400612527,1767743447470,-1016.122291,0.00031507,31]
[400612530,1767743447486,-1016.122291,0.00031507,31]
[400612532,1767743447501,-3207.086174,0.00031507,31]
[400612535,1767743447516,-3207.086174,0.00031507,31]
[400612538,1767743447530,-151.0,0.00031507,31]
[400612540,1767743447545,-1636.503275,0.00031507,31]
[400612543,1767743447559,-1636.503275,0.00031507,31]
[400612545,1767743447574,-1016.122291,0.00031507,31]
[400612548,1767743447589,-1016.122291,0.00031507,31]
[400612551,1767743447604,-3207.086174,0.00031507,31]
[400612553,1767743447619,-1636.503275,0.00031507,31]
[400612556,1767743447634,-3207.086174,0.00031507,31]
[400612558,1767743447649,-1636.503275,0.00031507,31]
[400612561,1767743447665,-1016.122291,0.00031507,31]
[400612564,1767743447679,-151.0,0.00031507,31]
[400612566,1767743447694,-1016.122291,0.00031507,31]
[400612569,1767743447709,-151.0,0.00031507,31]
[400612572,1767743447725,-420.21847,0.00031507,31]
[400612574,1767743447740,-3207.086174,0.00031507,31]
[400612577,1767743447754,-420.21847,0.00031507,31]
[400612580,1767743447771,-3207.086174,0.00031507,31]
[400612582,1767743447785,-1636.503275,0.00031507,31]
[400612585,1767743447801,-1636.503275,0.00031507,31]
[400612588,1767743447815,-225.397042,0.00031507,31]
[400612590,1767743447830,-420.21847,0.00031507,31]
[400612593,1767743447845,-420.21847,0.00031507,31]
[400612595,1767743447859,-1636.503275,0.00031507,31]
[400612598,1767743447873,-1636.503275,0.00031507,31]
[400612601,1767743447888,-420.21847,0.00031507,31]
[400612603,1767743447903,-420.21847,0.00031507,31]
[400612606,1767743447917,-420.21847,0.00031507,31]
[400612609,1767743447932,-420.21847,0.00031507,31]
[400612611,1767743447945,-1047.174783,0.00031507,31]
[400612614,1767743447959,-1047.174783,0.00031507,31]
[400612616,1767743447973,-246.565458,0.00031507,31]
[400612619,1767743447987,-246.565458,0.00031507,31]
[400612622,1767743448003,-1047.174783,0.00031507,31]
[400612624,1767743448019,-1047.174783,0.00031507,31]
[400612626,1767743448034,-246.565458,0.00031507,31]
[400612627,1767743448049,-246.565458,0.00031507,31]
[400612628,1767743448063,-1047.174783,0.00031507,31]
[400612629,1767743448077,-1047.174783,0.00031507,31]
[400612630,1767743448092,-246.565458,0.00031507,31]
[400612631,1767743448105,-246.565458,0.00031507,31]
[400612632,1767743448119,-1047.174783,0.00031507,31]
[400612634,1767743448134,-1047.174783,0.00031507,31]
[400612636,1767743448147,-246.565458,0.00031507,31]
[400612639,1767743448162,-246.565458,0.00031507,31]
[400612641,1767743448176,-406.566354,0.00031507,31]
[400612644,1767743448191,-406.566354,0.00031507,31]
[400612646,1767743448205,-406.566354,0.00031507,31]
[400612649,1767743448219,-406.566354,0.00031507,31]
[400612652,1767743448233,-406.566354,0.00031507,31]
[400612654,1767743448246,-406.566354,0.00031507,31]
[400612657,1767743448261,-151.0,0.00031507,7]
[400612659,1767743448275,-151.0,0.00031507,7]
[400612662,1767743448289,-406.566354,0.00031507,31]
[400612664,1767743448303,-406.566354,0.00031507,31]
[400612667,1767743448317,-151.0,0.00031507,7]
[400612669,1767743448331,-178.43321,0.00031507,7]
[400612672,1767743448346,-204.730222,0.00031507,31]
[400612674,1767743448360,-163.515507,0.00031507,31]
[400612677,1767743448374,-151.0,0.00031507,31]
[400612680,1767743448390,-151.0,0.00031507,31]
[400612682,1767743448404,-602.333126,0.00031507,31]
[400612685,1767743448418,-151.0,0.00031507,31]
[400612687,1767743448433,-602.333126,0.00031507,31]
[400612690,1767743448448,-151.0,0.00031507,31]
[400612693,1767743448464,-602.333126,0.00031507,31]
[400612695,1767743448478,-151.0,0.00031507,31]
[400612698,1767743448493,-602.333126,0.00031507,31]
[400612700,1767743448507,-265.95046,0.00031507,31]
[400612703,1767743448521,-151.0,0.00031507,31]
[400612705,1767743448536,-151.0,0.00031507,31]
[400612708,1767743448550,-602.333126,0.00031507,31]
[400612711,1767743448564,-301.240145,0.00031507,31]
[400612713,1767743448583,-602.333126,0.00031507,31]
[400612744,1767743448797,-301.240145,0.00031507,31]
[400612749,1767743448889,-151.0,0.00031507,31]
[400612751,1767743448902,-151.0,0.00031507,31]
[400612753,1767743448911,-602.333126,0.00031507,31]
[400612755,1767743448920,-301.240145,0.00031507,31]
[400612757,1767743448929,-602.333126,0.00031507,31]
[400612759,1767743448939,-301.240145,0.00031507,31]
[400612761,1767743448948,-301.240145,0.00031507,31]
[400612763,1767743448957,-301.240145,0.00031507,31]
[400612765,1767743448967,-301.240145,0.00031507,31]
[400612767,1767743448976,-301.240145,0.00031507,31]
[400612769,1767743448985,-151.0,0.00031507,31]
[400612771,1767743448994,-151.0,0.00031507,31]
[400612773,1767743449005,-151.0,0.00031507,31]
[400612775,1767743449014,-151.0,0.00031507,31]
[400612777,1767743449023,-151.0,0.00031507,31]
[400612779,1767743449032,-151.0,0.00031507,31]
[400612781,1767743449041,-151.0,0.00031507,31]
[400612783,1767743449051,-151.0,0.00031507,31]
[400612785,1767743449061,-153.782534,0.00031507,31]
[400612787,1767743449070,-1851.045269,0.00031507,31]
[400612789,1767743449080,-1851.045269,0.00031507,31]
[400612791,1767743449089,-1851.045269,0.00031507,31]
[400612793,1767743449098,-1851.045269,0.00031507,31]
[400612795,1767743449107,-1851.045269,0.00031507,31]
[400612797,1767743449117,-1851.045269,0.00031507,31]
[400612799,1767743449126,-1851.045269,0.00031507,31]
[400612801,1767743449135,-1851.045269,0.00031507,31]
[400612803,1767743449144,-151.0,0.00031507,31]
[400612805,1767743449153,-151.0,0.00031507,31]
[400612807,1767743449162,-151.0,0.00031507,31]
[400612809,1767743449172,-151.0,0.00031507,31]
[400612811,1767743449181,-151.0,0.00031507,31]
[400612813,1767743449190,-151.0,0.00031507,31]
[400612815,1767743449199,-172.2106957,0.00031539,2]
[400612817,1767743449208,-595.37131296,0.00031539,2]
[400612819,1767743449218,-217.15233878,0.00031539,2]
[400612821,1767743449227,-666.49,0.00031723,30]
[400612823,1767743449236,-5118.13,0.00032,7]
[400612825,1767743449245,-161.9193111,0.00032,30]
[400612827,1767743449255,-617.40005154,0.00032087,2]
[400612829,1767743449264,-225.18697532,0.00032087,2]
[400612831,1767743449273,-334.5472959,0.0003236,2]
[400612833,1767743449282,-287.61899177,0.0003236,2]
[400612835,1767743449292,-642.94,0.0003236,2]
[400612837,1767743449301,-505.0,0.00032383,4]
[400612839,1767743449311,-3978.74,0.000324,14]
[400612841,1767743449319,-557.93,0.00032577,2]
[400612843,1767743449329,-640.24385345,0.00032635,2]
[400612845,1767743449338,-233.51889341,0.00032635,2]
[400612847,1767743449349,-34728.81,0.00032646,2]
[400612849,1767743449359,-2658.44986633,0.000328,2]
[400612851,1767743449368,-557.93,0.00032851,2]
[400612853,1767743449376,-803.7588,0.0003287,2]
[400612855,1767743449386,-2000.0,0.00032876,30]
[400612857,1767743449396,-187.78006525,0.00032877,2]
[400612859,1767743449405,-343.53,0.00032877,2]
[400612861,1767743449414,-151.0,0.00032877,31]
[400612863,1767743449424,-151.0,0.00032877,31]
[400612865,1767743449434,-151.0,0.00032877,31]
[400612867,1767743449443,-151.0,0.00032877,31]
[400612869,1767743449452,-1998.0,0.00032877,30]
[400612871,1767743449462,-500.0,0.00032877,5]
[400612873,1767743449472,-1374.33826403,0.00032877,120]
[400612875,1767743449481,-1267.55568758,0.00032877,2]
[400612877,1767743449490,-200.0,0.00032877,2]
[400612879,1767743449500,-200.0,0.00032877,2]
[400612881,1767743449509,-200.0,0.00032877,2]
[400612883,1767743449518,-609.90650844,0.00032877,7]
[400612885,1767743449527,-609.90650844,0.00032877,7]
[400612887,1767743449537,-609.90650844,0.00032877,7]
[400612889,1767743449545,-609.90650844,0.00032877,7]
[400612891,1767743449555,-609.90650844,0.00032877,7]
[400612893,1767743449564,-609.90650844,0.00032877,7]
[400612895,1767743449573,-609.90650844,0.00032877,7]
[400612897,1767743449583,-609.90650844,0.00032877,7]
[400612899,1767743449592,-609.90650844,0.00032877,7]
[400612901,1767743449601,-609.90650844,0.00032877,7]
[400612903,1767743449611,-609.90650844,0.00032877,7]
[400612905,1767743449620,-609.90650844,0.00032877,7]
[400612907,1767743449630,-609.90650844,0.00032877,7]
[400612909,1767743449639,-609.90650844,0.00032877,7]
[400612911,1767743449649,-609.90650844,0.00032877,7]
[400612913,1767743449658,-609.90650844,0.00032877,7]
[400612915,1767743449668,-609.90650844,0.00032877,7]
[400612917,1767743449678,-609.90650844,0.00032877,7]
[400612919,1767743449687,-609.90650844,0.00032877,7]
[400612921,1767743449695,-609.90650844,0.00032877,7]
[400612923,1767743449704,-609.90650844,0.00032877,7]
[400612925,1767743449714,-609.90650844,0.00032877,7]
[400612927,1767743449723,-609.90650844,0.00032877,7]
[400612930,1767743449732,-609.90650844,0.00032877,7]
[400612932,1767743449742,-609.90650844,0.00032877,7]
[400612934,1767743449752,-609.90650844,0.00032877,7]
[400612936,1767743449761,-609.90650844,0.00032877,7]
[400612938,1767743449772,-609.90650844,0.00032877,7]
[400612940,1767743449781,-609.90650844,0.00032877,7]
[400612942,1767743449790,-609.90650844,0.00032877,7]
[400612944,1767743449803,-609.90650844,0.00032877,7]
[400612946,1767743449813,-609.90650844,0.00032877,7]
[400612948,1767743449823,-609.90650844,0.00032877,7]
[400612950,1767743449832,-609.90650844,0.00032877,7]
[400612952,1767743449841,-609.90650844,0.00032877,7]
[400612954,1767743449851,-609.90650844,0.00032877,7]
[400612957,1767743449860,-609.90650844,0.00032877,7]
[400612959,1767743449870,-609.90650844,0.00032877,7]
[400612961,1767743449879,-609.90650844,0.00032877,7]
[400612963,1767743449888,-609.90650844,0.00032877,7]
[400612965,1767743449898,-609.90650844,0.00032877,7]
[400612967,1767743449907,-609.90650844,0.00032877,7]
[400612969,1767743449916,-609.90650844,0.00032877,7]
[400612971,1767743449925,-609.90650844,0.00032877,7]
[400612973,1767743449934,-609.90650844,0.00032877,7]
[400612975,1767743449943,-609.90650844,0.00032877,7]
[400612977,1767743449952,-609.90650844,0.00032877,7]
[400612979,1767743449961,-609.90650844,0.00032877,7]
[400612981,1767743449970,-602.4686242,0.00032877,7]
[400612983,1767743449980,-602.4686242,0.00032877,7]
[400612985,1767743449989,-602.4686242,0.00032877,7]
[400612987,1767743449999,-602.4686242,0.00032877,7]
[400612989,1767743450013,-602.4686242,0.00032877,7]
[400612991,1767743450022,-602.4686242,0.00032877,7]
[400612993,1767743450031,-602.4686242,0.00032877,7]
[400612995,1767743450040,-602.4686242,0.00032877,7]
[400612997,1767743450049,-602.4686242,0.00032877,7]
[400612999,1767743450059,-602.4686242,0.00032877,7]
[400613001,1767743450068,-602.4686242,0.00032877,7]
[400613003,1767743450078,-602.4686242,0.00032877,7]
[400613005,1767743450087,-602.4686242,0.00032877,7]
[400613007,1767743450098,-602.4686242,0.00032877,7]
[400613009,1767743450107,-602.4686242,0.00032877,7]
[400613011,1767743450117,-602.4686242,0.00032877,7]
[400613013,1767743450127,-602.4686242,0.00032877,7]
[400613015,1767743450136,-602.4686242,0.00032877,7]
[400613017,1767743450145,-602.4686242,0.00032877,7]
[400613019,1767743450154,-602.4686242,0.00032877,7]
[400613021,1767743450163,-602.4686242,0.00032877,7]
[400613023,1767743450173,-602.4686242,0.00032877,7]
[400613025,1767743450182,-602.4686242,0.00032877,7]
[400613027,1767743450191,-602.4686242,0.00032877,7]
[400613029,1767743450200,-602.4686242,0.00032877,7]
[400613031,1767743450210,-602.4686242,0.00032877,7]
[400613033,1767743450219,-585.52419414,0.00032877,7]
[400613035,1767743450228,-585.52419414,0.00032877,7]
[400613037,1767743450237,-585.52419414,0.00032877,7]
[400613039,1767743450246,-585.52419414,0.00032877,7]
[400613041,1767743450255,-585.52419414,0.00032877,7]
[400613043,1767743450265,-585.52419414,0.00032877,7]
[400613045,1767743450275,-585.52419414,0.00032877,7]
[400613047,1767743450284,-585.52419414,0.00032877,7]
[400613049,1767743450294,-585.52419414,0.00032877,7]
[400613051,1767743450304,-585.52419414,0.00032877,7]
[400613053,1767743450313,-585.52419414,0.00032877,7]
[400613055,1767743450322,-585.52419414,0.00032877,7]
[400613058,1767743450332,-585.52419414,0.00032877,7]
[400613060,1767743450341,-585.52419414,0.00032877,7]
[400613062,1767743450351,-585.52419414,0.00032877,7]
[400613064,1767743450360,-585.52419414,0.00032877,7]
[400613066,1767743450370,-200.0,0.00032877,2]
[400613068,1767743450380,-151.0,0.00032897,14]
[400613070,1767743450389,-1343.27,0.000329,14]
[400613072,1767743450397,-3805.47,0.000329,2]
[400613074,1767743450407,-1169.93,0.000329,14]
[400613076,1767743450416,-109679.09,0.000329,2]
[400613078,1767743450425,-309.0,0.00032995,120]
[400613080,1767743450436,-435.34,0.00033,120]
[400613082,1767743450445,-552.05024768,0.00033,30]
[400613084,1767743450454,-208.2,0.00033,2]
[400613086,1767743450464,-51125.40259919,0.00033,2]
[400613087,1767743450473,-26289.76664934,0.00033,2]
[400613088,1767743450483,-51405.61485821,0.00033,2]
[400613089,1767743450493,-153.01341138,0.00033,2]
[400613090,1767743450502,-151.0,0.00033,31]
[400613091,1767743450512,-151.0,0.00033,31]
[400613092,1767743450521,-193.915758,0.00033,31]
[400613093,1767743450530,-151.0,0.00033,31]
[400613094,1767743450540,-281.52862,0.00033,31]
[400613095,1767743450550,-151.0,0.00033,31]
[400613096,1767743450564,-151.0,0.00033,31]
[400613098,1767743450574,-151.0,0.00033,31]
[400613100,1767743450584,-185.0,0.00033113,120]
[400613102,1767743450594,-159.0,0.00033113,120]
[400613105,1767743450604,-160.0,0.00033113,120]
[400613107,1767743450615,-557.93,0.00033125,2]
[400613109,1767743450624,-2823.5,0.00033149,3]
[400613111,1767743450634,-663.93287602,0.00033183,2]
[400613113,1767743450643,-242.15909246,0.00033183,2]
[400613115,1767743450653,-200.0,0.00033206,2]
[400613117,1767743450663,-200.0,0.00033206,2]
[400613119,1767743450673,-200.0,0.00033206,2]
[400613121,1767743450683,-200.0,0.00033206,2]
[400613123,1767743450692,-304.13144408,0.00033367,3]
[400613125,1767743450701,-327.71,0.00033399,2]
[400613127,1767743450711,-160.0,0.000335,4]
[400613129,1767743450720,-1207.15046117,0.000335,2]
[400613131,1767743450729,-999.0,0.00033526,3]
[400613133,1767743450738,-200.0,0.00033538,2]
[400613135,1767743450747,-200.0,0.00033538,2]
[400613136,1767743450756,-200.0,0.00033538,2]
[400613137,1767743450766,-200.0,0.00033538,2]
[400613138,1767743450775,-505.0,0.00033636,6]
[400613139,1767743450784,-1040.62,0.000337,30]
[400613140,1767743450794,-346.92554585,0.00033729,2]
[400613141,1767743450803,-298.26089446,0.00033729,2]
[400613142,1767743450813,-666.72878,0.00033729,2]
[400613143,1767743450822,-599.60298507,0.0003373,2]
[400613144,1767743450831,-688.49839244,0.00033731,2]
[400613145,1767743450840,-251.11897888,0.00033731,2]
[400613146,1767743450849,-200.0,0.00033873,2]
[400613147,1767743450859,-200.0,0.00033873,2]
[400613148,1767743450868,-200.0,0.00033873,2]
[400613150,1767743450877,-200.0,0.00033873,2]
[400613152,1767743450887,-1000.0,0.00033915,2]
[400613153,1767743450896,-160.0,0.00034,6]
[400613154,1767743450906,-208.2,0.00034,6]
[400613155,1767743450915,-325.97778318,0.00034,2]
[400613156,1767743450925,-772.98909842,0.00034,7]
[400613157,1767743450934,-1909.29605499,0.00034,2]
[400613158,1767743450944,-200.0,0.00034212,2]
[400613159,1767743450954,-194.72792766,0.00034246,2]
[400613160,1767743450963,-713.97283296,0.00034279,2]
[400613161,1767743450973,-260.4103811,0.00034279,2]
[400613162,1767743450982,-1725.60731908,0.0003449,2]
[400613163,1767743450991,-433.0,0.0003449,10]
[400613164,1767743451001,-160.0,0.000345,9]
[400613165,1767743451013,-160.0,0.000345,9]
[400613166,1767743451022,-5000.0,0.000345,14]
[400613167,1767743451033,-4119.72,0.00034504,2]
[400613168,1767743451043,-3805.47,0.000346,2]
[400613169,1767743451053,-500.0,0.00034619,30]
[400613170,1767743451063,-500.0,0.00034619,120]
[400613171,1767743451072,-309.0,0.00034645,120]
[400613172,1767743451083,-5118.13,0.000347,14]
[400613173,1767743451093,-1169.93,0.000347,14]
[400613174,1767743451103,-500.0,0.00034712,2]
[400613175,1767743451112,-185.0,0.00034769,120]
[400613176,1767743451122,-159.0,0.00034769,120]
[400613177,1767743451133,-160.0,0.00034769,120]
[400613178,1767743451142,-659.5349925,0.00034815,2]
[400613179,1767743451152,-740.38982778,0.00034827,2]
[400613180,1767743451161,-270.0455652,0.00034827,2]
[400613181,1767743451171,-236.74555436,0.00034842,13]
[400613182,1767743451180,-6505.11467841,0.00034852,60]
[400613183,1767743451190,-354.5798613,0.0003488,120]
[400613184,1767743451199,-505.0,0.00034889,7]
[400613185,1767743451209,-3852.1493451,0.000349,2]
[400613186,1767743451219,-1343.27,0.000349,14]
[400613187,1767743451228,-5378.0,0.00034901,5]
[400613188,1767743451238,-627.34601575,0.00035,30]
[400613189,1767743451248,-8532.61725714,0.00035,30]
[400613190,1767743451257,-160.0,0.00035,11]
[400613192,1767743451267,-160.0,0.00035,11]
[400613194,1767743451276,-208.2,0.00035,11]
[400613196,1767743451286,-9306.92456789,0.00035,30]
[400613198,1767743451295,-1911.22125804,0.00035,2]
[400613200,1767743451305,-1098.89790899,0.00035,30]
[400613202,1767743451314,-825.97217431,0.00035,30]
[400613205,1767743451324,-178.13204382,0.00035,120]
[400613207,1767743451336,-401.13837131,0.00035,30]
[400613209,1767743451346,-151.0,0.00035,31]
[400613211,1767743451355,-206.523687,0.00035,31]
[400613213,1767743451365,-151.0,0.00035,31]
[400613215,1767743451375,-193.687225,0.00035,31]
[400613217,1767743451385,-193.687225,0.00035,31]
[400613219,1767743451395,-193.687225,0.00035,31]
[400613221,1767743451406,-193.687225,0.00035,31]
[400613224,1767743451416,-151.0,0.00035,31]
[400613226,1767743451426,-496.699588,0.00035,31]
[400613228,1767743451436,-151.0,0.00035,31]
[400613229,1767743451445,-496.699588,0.00035,31]
[400613231,1767743451455,-496.699588,0.00035,31]
[400613232,1767743451465,-151.0,0.00035,31]
[400613234,1767743451474,-496.699588,0.00035,31]
[400613235,1767743451484,-151.0,0.00035,31]
[400613236,1767743451493,-995.647522,0.00035,31]
[400613237,1767743451504,-995.647522,0.00035,31]
[400613238,1767743451514,-995.647522,0.00035,31]
[400613239,1767743451524,-995.647522,0.00035,31]
[400613240,1767743451534,-963.692266,0.00035,28]
[400613241,1767743451544,-963.692266,0.00035,28]
[400613242,1767743451555,-1271.020055,0.00035,31]
[400613243,1767743451566,-1271.020055,0.00035,31]
[400613244,1767743451577,-963.692266,0.00035,28]
[400613245,1767743451587,-1271.020055,0.00035,31]
[400613246,1767743451598,-963.692266,0.00035,28]
[400613247,1767743451610,-1271.020055,0.00035,31]
[400613248,1767743451621,-1000.0,0.00035,7]
[400613249,1767743451632,-359.76179104,0.00035098,2]
[400613250,1767743451642,-309.29654756,0.00035098,2]
[400613251,1767743451653,-691.39774486,0.00035098,2]
[400613252,1767743451663,-152.0,0.00035193,3]
[400613253,1767743451674,-2076.5387,0.0003522,30]
[400613254,1767743451685,-2823.5,0.00035221,4]
[400613255,1767743451696,-2500.0,0.000353,14]
[400613256,1767743451706,-109679.09,0.000353,2]
[400613257,1767743451717,-151.0,0.000353,31]
[400613258,1767743451727,-151.0,0.000353,31]
[400613259,1767743451738,-151.0,0.000353,31]
[400613260,1767743451749,-224.716118,0.000353,31]
[400613261,1767743451760,-224.716118,0.000353,31]
[400613262,1767743451771,-224.716118,0.000353,31]
[400613263,1767743451781,-224.716118,0.000353,31]
[400613264,1767743451790,-151.0,0.000353,31]
[400613265,1767743451800,-250.041837,0.000353,31]
[400613266,1767743451810,-151.0,0.000353,31]
[400613267,1767743451820,-151.0,0.000353,31]
[400613268,1767743451831,-151.0,0.000353,31]
[400613269,1767743451841,-151.0,0.000353,31]
[400613270,1767743451851,-278.17483,0.000353,31]
[400613271,1767743451860,-151.0,0.000353,31]
[400613272,1767743451870,-151.0,0.000353,31]
[400613273,1767743451879,-151.0,0.000353,31]
[400613274,1767743451889,-167.040625,0.000353,31]
[400613275,1767743451899,-151.0,0.000353,31]
[400613276,1767743451909,-151.0,0.000353,31]
[400613277,1767743451918,-1016.122291,0.000353,31]
[400613278,1767743451928,-3207.086174,0.000353,31]
[400613279,1767743451937,-1016.122291,0.000353,31]
[400613280,1767743451948,-3207.086174,0.000353,31]
[400613281,1767743451957,-1636.503275,0.000353,31]
[400613282,1767743451968,-1016.122291,0.000353,31]
[400613283,1767743451978,-3207.086174,0.000353,31]
[400613284,1767743451988,-1636.503275,0.000353,31]
[400613285,1767743452212,-1016.122291,0.000353,31]
[400613286,1767743452222,-151.0,0.000353,31]
[400613287,1767743452232,-420.21847,0.000353,31]
[400613288,1767743452242,-3207.086174,0.000353,31]
[400613289,1767743452252,-1636.503275,0.000353,31]
[400613290,1767743452262,-420.21847,0.000353,31]
[400613291,1767743452272,-1636.503275,0.000353,31]
[400613292,1767743452282,-420.21847,0.000353,31]
[400613293,1767743452291,-420.21847,0.000353,31]
[400613294,1767743452301,-1047.174783,0.000353,31]
[400613295,1767743452310,-246.565458,0.000353,31]
[400613296,1767743452320,-1047.174783,0.000353,31]
[400613297,1767743452329,-246.565458,0.000353,31]
[400613298,1767743452341,-1047.174783,0.000353,31]